bitfinex/quotes_ETHUSD_20251122
["timestamp","ask_amount","ask_price","bid_price","bid_amount"]
[1763796428014,0.002,2765.3,2764.9,0.4991]
[1763796428935,0.002,2765.3,2764.9,0.9987]
[1763796429139,0.4974,2765.0,2764.3,0.4996]
[1763796429371,0.4974,2765.0,2764.1,0.1502]
[1763796429372,0.70490959,2764.9,2764.1,0.1502]
[1763796429640,0.002,2765.0,2764.3,0.4996]
[1763796429843,0.002,2765.0,2764.8,0.4991]
[1763796430401,0.002,2765.0,2764.9,0.4991]
[1763796430653,0.002,2765.0,2764.4,0.4996]
[1763796430839,0.002,2765.0,2764.9,0.4991]
[1763796431928,0.002,2765.0,2764.9,0.9987]
[1763796433340,0.002,2765.0,2764.2,0.405504]
[1763796433341,0.4974,2765.0,2764.4,0.4996]
[1763796434607,0.4974,2765.0,2764.1,0.1502]
[1763796434807,0.1918,2764.9,2764.2,0.4996]
[1763796435246,0.6597,2764.9,2764.1,0.1502]
[1763796435619,0.6597,2764.9,2764.1,0.6498]
[1763796435620,0.1918,2764.9,2764.1,0.6498]
[1763796436447,0.1918,2764.9,2764.2,0.4996]
[1763796436609,0.4679,2764.8,2764.1,0.1502]
[1763796437725,0.1918,2764.9,2764.2,0.4996]
[1763796438172,0.6597,2764.9,2764.2,0.4996]
[1763796438522,0.4679,2764.8,2764.1,0.1502]
[1763796439913,0.1918,2764.9,2764.1,0.1502]
[1763796440121,0.1918,2764.9,2764.2,0.4996]
[1763796440327,0.4603621,2764.9,2764.2,0.4996]
[1763796441641,0.78079534,2765.0,2764.2,0.4996]
[1763796441837,0.3382951,2764.9,2764.2,0.4996]
[1763796442036,1.11909044,2765.0,2764.2,0.4996]
[1763796442236,1.11709044,2764.9,2764.2,0.4996]
[1763796442452,0.002,2765.0,2764.2,0.4996]
[1763796443553,0.34034411,2765.0,2764.2,0.4996]
[1763796443722,0.002,2765.0,2764.9,0.4991]
[1763796445864,0.002,2765.0,2764.6,0.4996]
[1763796446437,0.002,2765.0,2764.2,3.806]
[1763796446686,0.002,2765.0,2764.3,0.89532]
[1763796447170,0.002,2765.0,2764.4,0.4996]
[1763796447541,0.002,2765.0,2764.3,0.39572]
[1763796447542,0.1918,2764.9,2764.3,0.39572]
[1763796447743,0.04521122,2764.8,2764.2,4.3056]
[1763796448059,1.0432537,2764.9,2764.2,3.806]
[1763796448244,1.58695446,2764.8,2764.2,3.806]
[1763796448441,0.33834411,2764.7,2764.2,3.806]
[1763796448873,0.33834411,2764.7,2764.1,0.1512]
[1763796448874,0.80624411,2764.7,2764.1,0.1512]
[1763796449052,0.4679,2764.7,2764.1,0.1512]
[1763796449374,0.33905851,2764.6,2764.1,0.1512]
[1763796449779,0.80695851,2764.6,2764.1,0.1512]
[1763796450079,0.33895752,2764.5,2764.1,0.1512]
[1763796450242,0.80685752,2764.5,2764.1,0.1512]
[1763796450439,0.4679,2764.5,2764.1,0.1512]
[1763796452083,0.4954,2764.2,2764.1,0.001]
[1763796452987,0.9633,2764.2,2764.1,0.001]
[1763796456483,1.30195438,2764.2,2764.1,0.001]
[1763796457419,1.32795438,2764.2,2764.1,0.001]
[1763796458209,0.83405438,2764.2,2764.1,0.001]
[1763796460407,0.4954,2764.2,2764.1,0.001]
[1763796462720,0.002,2764.5,2764.1,1.0996]
[1763796463021,0.002,2764.5,2764.2,0.4825]
[1763796463206,0.34038605,2764.5,2764.2,0.4825]
[1763796463516,1.12003297,2764.5,2764.2,0.4825]
[1763796463819,0.33838605,2764.4,2764.2,0.4825]
[1763796464318,0.33838332,2764.4,2764.2,0.4825]
[1763796465214,0.33838332,2764.4,2764.3,0.4825]
[1763796465826,0.002,2764.5,2764.3,0.9484]
[1763796466029,0.002,2764.5,2764.1,0.1512]
[1763796466197,0.002,2764.5,2764.1,0.6171]
[1763796467599,0.002,2764.5,2764.1,0.1512]
[1763796467804,0.002,2764.5,2764.4,0.4825]
[1763796470313,0.002,2764.5,2764.4,0.9484]
[1763796470529,0.002,2764.5,2764.4,0.4825]
[1763796470839,0.002,2764.5,2764.4,0.9484]
[1763796473935,0.002,2764.5,2764.4,1.42384]
[1763796474955,0.002,2764.5,2764.4,1.829344]
[1763796475103,0.002,2764.5,2764.4,1.353904]
[1763796476840,0.002,2764.5,2764.4,5.159904]
[1763796481211,0.002,2764.5,2764.4,5.160904]
[1763796481624,0.002,2764.5,2764.4,3.807]
[1763796481824,0.4647,2764.5,2764.4,3.807]
[1763796482145,0.9586,2764.5,2764.4,0.001]
[1763796486524,2.07617763,2764.5,2764.4,0.001]
[1763796486725,2.28379539,2764.5,2764.4,0.001]
[1763796488433,2.2838591,2764.5,2764.4,0.001]
[1763796494687,2.28393867,2764.5,2764.4,0.001]
[1763796494898,3.19093131,2764.5,2764.4,0.001]
[1763796498754,2.28393867,2764.5,2764.4,0.001]
[1763796501153,2.28382791,2764.5,2764.4,0.001]
[1763796501360,1.11961015,2764.5,2764.4,0.453]
[1763796501558,0.34028302,2764.5,2764.4,0.453]
[1763796501759,0.002,2764.5,2764.4,0.453]
[1763796504000,0.919,2764.5,2764.4,0.001]
[1763796504183,2.98881892,2764.5,2764.4,0.001]
[1763796504499,4.82801402,2764.5,2764.4,0.001]
[1763796505202,6.88817428,2764.5,2764.4,0.001]
[1763796505497,3.81217515,2764.5,2764.4,0.001]
[1763796505868,3.34867515,2764.5,2764.4,0.001]
[1763796506198,2.48010279,2764.5,2764.4,0.001]
[1763796507607,2.94360279,2764.5,2764.4,0.001]
[1763796507906,1.57311015,2764.5,2764.4,0.001]
[1763796508474,1.11961015,2764.5,2764.4,0.001]
[1763796508672,0.34028302,2764.5,2764.4,0.001]
[1763796509409,0.34028302,2764.5,2764.4,0.9296]
[1763796509607,1.11961015,2764.5,2764.4,0.9296]
[1763796509811,0.34028302,2764.5,2764.4,0.9296]
[1763796510112,0.002,2764.5,2764.4,0.9296]
[1763796510487,0.4555,2764.5,2764.4,0.001]
[1763796510693,1.25728302,2764.5,2764.4,0.001]
[1763796511215,2.03661015,2764.5,2764.4,0.001]
[1763796512207,3.58535357,2764.5,2764.4,0.001]
[1763796512585,4.15316041,2764.5,2764.4,0.001]
[1763796512882,8.87944233,2764.5,2764.4,0.001]
[1763796513193,7.58185094,2764.5,2764.4,0.001]
[1763796513396,8.87944233,2764.5,2764.4,0.001]
[1763796516398,7.58185094,2764.5,2764.4,0.001]
[1763796516704,9.53071561,2764.5,2764.4,0.001]
[1763796517720,6.6613583,2764.5,2764.4,0.001]
[1763796517911,2.66406055,2764.5,2764.4,0.4609]
[1763796518092,2.09625371,2764.5,2764.4,0.4609]
[1763796518294,1.31692658,2764.5,2764.4,0.4609]
[1763796518507,2.09625371,2764.5,2764.4,0.4609]
[1763796518718,3.49174635,2764.5,2764.4,0.001]
[1763796519796,3.94174635,2764.5,2764.4,0.001]
[1763796520204,7.37043688,2764.5,2764.4,0.001]
[1763796527552,3.00324635,2764.5,2764.4,0.4609]
[1763796527708,2.02660279,2764.5,2764.4,0.4609]
[1763796532055,2.51510279,2764.5,2764.4,0.001]
[1763796532744,2.02660279,2764.5,2764.4,0.001]
[1763796533123,2.02660279,2764.5,2764.4,0.4609]
[1763796534264,1.11961015,2764.5,2764.4,0.9121]
[1763796534467,0.002,2764.5,2764.4,0.9121]
[1763796536277,0.002,2764.5,2764.4,0.001]
[1763796536278,0.4905,2764.5,2764.4,0.001]
[1763796536445,2.90973388,2764.5,2764.4,0.001]
[1763796538245,2.51781483,2764.5,2764.4,0.001]
[1763796539450,2.5176981,2764.5,2764.4,0.001]
[1763796540363,2.0291981,2764.5,2764.4,0.4609]
[1763796540974,2.0291981,2764.5,2764.4,0.001]
[1763796541155,1.12220546,2764.5,2764.4,0.4609]
[1763796541951,0.34096335,2764.5,2764.4,0.4609]
[1763796543188,0.34096335,2764.5,2764.4,0.001]
[1763796543492,0.82946335,2764.5,2764.4,0.001]
[1763796544788,2.58110629,2764.5,2764.4,0.001]
[1763796544962,3.3623484,2764.5,2764.4,0.001]
[1763796545156,2.9676981,2764.5,2764.4,0.001]
[1763796545353,1.12220546,2764.5,2764.4,0.4609]
[1763796545583,1.12220546,2764.5,2764.4,0.9155]
[1763796545757,0.34096335,2764.5,2764.4,0.9155]
[1763796545956,0.002,2764.5,2764.4,0.9155]
[1763796546256,0.002,2764.5,2764.4,1.34991905]
[1763796546458,0.002,2764.5,2764.4,0.9155]
[1763796550000,0.4929,2764.5,2764.4,0.001]
[1763796550160,1.31598141,2764.5,2764.4,0.001]
[1763796550357,2.09719514,2764.5,2764.4,0.001]
[1763796550556,2.65430516,2764.5,2764.4,0.001]
[1763796551025,1.12209514,2764.5,2764.4,0.4677]
[1763796551429,0.34088141,2764.5,2764.4,0.4677]
[1763796551634,0.002,2764.5,2764.4,0.4677]
[1763796551833,0.002,2764.5,2764.4,0.9223]
[1763796558161,0.002,2764.5,2764.4,0.001]
[1763796559054,0.4929,2764.5,2764.4,0.001]
[1763796560237,1.31560798,2764.5,2764.4,0.001]
[1763796561151,2.09560936,2764.5,2764.4,0.001]
[1763796561325,2.30969158,2764.5,2764.4,0.001]
[1763796563268,3.21668422,2764.5,2764.4,0.001]
[1763796564242,3.21681348,2764.5,2764.4,0.001]
[1763796569689,2.24171348,2764.5,2764.4,0.4677]
[1763796569988,2.02763126,2764.5,2764.4,0.540048]
[1763796573346,1.12063862,2764.5,2764.4,0.994648]
[1763796573608,0.34050798,2764.5,2764.4,0.994648]
[1763796573775,0.002,2764.5,2764.4,0.994648]
[1763796573976,0.34050798,2764.5,2764.4,0.540048]
[1763796574177,0.002,2764.5,2764.4,0.540048]
[1763796576511,0.4738,2764.5,2764.4,0.073348]
[1763796576805,0.81233994,2764.5,2764.4,0.073348]
[1763796582539,0.34053994,2764.5,2764.4,0.533548]
[1763796582909,0.002,2764.5,2764.4,0.533548]
[1763796583126,1.12067058,2764.5,2764.4,0.995848]
[1763796583431,0.002,2764.5,2764.4,0.995848]
[1763796588625,0.002,2764.5,2764.4,1.401352]
[1763796588830,0.002,2764.5,2764.4,1.92367597]
[1763796595541,0.002,2764.5,2764.4,5.72967597]
[1763796598037,0.002,2764.5,2764.4,5.26737597]
[1763796598243,0.002,2764.5,2764.4,4.86187197]
[1763796598590,0.002,2764.5,2764.4,4.339548]
[1763796601487,0.4738,2764.5,2764.4,0.073348]
[1763796601644,0.9263,2764.5,2764.4,0.073348]
[1763796602845,0.4738,2764.5,2764.4,0.073348]
[1763796603044,0.9263,2764.5,2764.4,0.073348]
[1763796604686,0.002,2764.5,2764.4,0.533548]
[1763796605071,0.002,2764.5,2764.4,0.995848]
[1763796606696,0.002,2764.5,2764.4,1.401352]
[1763796606856,0.002,2764.5,2764.4,1.92085596]
[1763796607896,0.002,2764.5,2764.4,1.45855596]
[1763796608100,0.002,2764.5,2764.4,1.95325596]
[1763796610581,0.002,2764.5,2764.4,1.05305196]
[1763796610888,0.002,2764.5,2764.4,1.95325596]
[1763796613260,0.002,2764.5,2764.4,10.2836701]
[1763796613504,0.002,2764.5,2764.4,6.6662486]
[1763796613799,0.002,2764.5,2764.4,5.38655596]
[1763796614000,0.002,2764.5,2764.4,5.88125596]
[1763796614496,0.002,2764.5,2764.4,5.75925596]
[1763796614890,0.002,2764.5,2764.4,5.26455596]
[1763796615113,0.002,2764.5,2764.4,5.75925596]
[1763796616185,0.002,2764.5,2764.4,9.43094361]
[1763796616387,0.002,2764.5,2764.4,10.33793625]
[1763796617023,0.002,2764.5,2764.4,6.6662486]
[1763796618181,0.002,2764.5,2764.4,10.2836701]
[1763796620989,0.002,2764.5,2764.4,10.3826641]
[1763796621189,0.002,2764.5,2764.4,14.1986641]
[1763796628492,0.002,2764.8,2764.7,4.221504]
[1763796628804,0.002,2764.8,2764.7,11.41894615]
[1763796629120,0.002,2764.8,2764.7,15.36983825]
[1763796629491,0.002,2765.0,2764.9,4.221504]
[1763796629688,0.002,2765.0,2764.9,5.70949064]
[1763796629893,0.002,2765.0,2764.9,6.20419064]
[1763796630118,0.002,2765.0,2764.9,7.74117447]
[1763796630291,0.002,2765.0,2764.9,11.3579418]
[1763796632905,0.002,2765.1,2765.0,5.22749064]
[1763796633102,0.002,2765.3,2765.2,9.03149064]
[1763796633316,0.002,2765.3,2765.2,14.21539649]
[1763796633621,0.002,2766.4,2765.5,5.22749064]
[1763796633805,0.4846,2766.3,2765.5,5.70949064]
[1763796634008,0.002,2766.4,2765.5,10.00819064]
[1763796634706,0.002,2766.4,2765.5,13.62417328]
[1763796635308,0.002,2766.4,2765.7,4.221504]
[1763796635495,0.002,2766.4,2766.0,10.19040249]
[1763796636016,0.002,2766.4,2766.0,10.68730249]
[1763796636196,0.002,2766.4,2766.0,10.83214055]
[1763796636405,0.002,2766.4,2766.0,7.01614055]
[1763796636602,0.002,2766.4,2766.0,7.11513455]
[1763796636812,0.002,2766.4,2766.0,11.50546196]
[1763796638937,0.002,2766.4,2766.0,13.76518701]
[1763796639430,0.002,2766.4,2766.3,8.25112154]
[1763796639618,0.002,2766.4,2766.3,8.86052154]
[1763796639826,0.002,2766.4,2766.3,9.33862154]
[1763796639997,0.002,2766.4,2766.3,10.71691369]
[1763796641314,0.002,2766.4,2766.3,14.3318506]
[1763796642727,0.002,2767.0,2766.4,1.31249664]
[1763796642913,0.002,2767.0,2766.6,8.73852154]
[1763796643113,0.002,2767.0,2766.6,9.21662154]
[1763796643439,0.002,2767.0,2766.6,10.48026524]
[1763796643808,0.002,2767.0,2766.6,14.09481016]
[1763796644118,0.002,2767.0,2766.6,14.23960889]
[1763796645066,0.002,2767.0,2766.7,1.41149064]
[1763796645243,0.002,2767.0,2766.9,8.63952754]
[1763796645568,0.002,2767.0,2766.9,10.04159029]
[1763796646264,0.002,2767.0,2766.9,13.65574331]
[1763796646452,0.002,2767.0,2766.9,13.75473731]
[1763796646647,0.002,2767.3,2767.2,3.92431345]
[1763796646842,0.002,2767.3,2767.2,4.43471945]
[1763796647143,0.002,2767.3,2767.2,5.3257622]
[1763796647347,0.002,2767.3,2767.2,5.47054311]
[1763796647558,0.4999,2767.3,2767.2,4.98314311]
[1763796647932,0.002,2767.3,2767.2,5.47054311]
[1763796648449,0.002,2767.3,2767.2,9.08430431]
[1763796648649,0.002,2767.3,2767.2,9.66139831]
[1763796649052,0.002,2767.3,2767.2,9.08430431]
[1763796649579,0.002,2767.3,2767.2,9.56240431]
[1763796650239,0.002,2767.3,2767.2,10.46939695]
[1763796650469,0.002,2767.3,2767.2,10.56839095]
[1763796654747,0.002,2767.4,2767.3,5.12849664]
[1763796655051,0.4581,2768.2,2767.8,0.405504]
[1763796655246,0.4581,2768.2,2768.1,4.73231209]
[1763796655647,0.956,2768.2,2768.1,4.73231209]
[1763796658419,0.956,2768.2,2767.9,0.90699264]
[1763796658683,0.2398,2768.0,2767.7,0.122]
[1763796658904,0.2398,2768.0,2767.9,1.31249664]
[1763796659476,0.6979,2768.0,2767.9,1.31249664]
[1763796659801,0.1927,2768.3,2768.0,0.405504]
[1763796659802,0.6508,2768.3,2768.0,0.405504]
[1763796660015,0.6508,2768.3,2768.2,3.41981545]
[1763796660165,0.1927,2768.3,2768.2,3.41981545]
[1763796660355,0.6906,2768.3,2768.2,3.41981545]
[1763796660556,0.1841,2768.6,2768.2,4.2200514]
[1763796660892,0.1841,2768.6,2768.5,3.82531945]
[1763796661088,0.1841,2768.6,2768.5,3.94731945]
[1763796661280,0.682,2768.6,2768.5,3.94731945]
[1763796661688,1.1401,2768.6,2768.5,3.94731945]
[1763796661995,1.1401,2768.6,2768.5,4.3420514]
[1763796663296,1.1401,2768.6,2768.5,3.94731945]
[1763796663861,0.6422,2768.9,2768.6,0.405504]
[1763796664095,0.6422,2768.9,2768.7,3.41981545]
[1763796664260,0.4581,2768.8,2768.7,3.82531945]
[1763796664464,0.956,2768.8,2768.7,3.82531945]
[1763796665186,0.956,2768.8,2768.7,0.405504]
[1763796665370,0.956,2768.8,2767.7,0.6979]
[1763796665570,0.4613,2768.7,2768.2,3.41981545]
[1763796665774,0.4925,2768.3,2768.2,0.122]
[1763796666170,0.9914,2768.3,2768.2,0.122]
[1763796666970,0.9914,2768.3,2768.2,0.527504]
[1763796667393,0.9914,2768.3,2768.2,0.405504]
[1763796667990,0.9914,2768.3,2768.0,3.41981545]
[1763796668197,0.2133,2768.1,2768.0,3.82531945]
[1763796668581,0.7122,2768.1,2768.0,3.82531945]
[1763796669105,0.7122,2768.1,2768.0,0.405504]
[1763796669407,0.7122,2768.1,2768.0,3.82531945]
[1763796670131,0.7122,2768.1,2768.0,3.41981545]
[1763796671630,0.7122,2768.1,2768.0,3.82531945]
[1763796671796,0.7122,2768.1,2768.0,4.56203294]
[1763796672196,0.7122,2768.1,2768.0,3.82531945]
[1763796676236,0.2133,2768.1,2768.0,3.82531945]
[1763796676653,0.67614148,2768.1,2768.0,3.82531945]
[1763796676953,0.67614148,2768.1,2768.0,0.405504]
[1763796678900,0.67614148,2768.1,2767.7,3.804]
[1763796679052,0.4897,2767.9,2767.5,0.122]
[1763796679363,0.3645,2767.6,2767.5,0.527504]
[1763796679860,3.66111743,2768.6,2767.5,0.527504]
[1763796679861,0.1849,2767.9,2767.6,0.405504]
[1763796680008,0.6838,2767.9,2767.8,0.405504]
[1763796680413,1.1763,2767.9,2767.8,0.405504]
[1763796681421,0.4989,2768.2,2767.8,4.61616614]
[1763796681648,0.4925,2767.9,2767.8,4.61616614]
[1763796682023,0.9914,2767.9,2767.8,4.61616614]
[1763796682225,1.1682,2767.9,2767.8,4.61616614]
[1763796684896,1.1682,2767.9,2767.8,4.61716614]
[1763796687458,1.1682,2767.9,2767.8,3.805]
[1763796690465,1.1682,2767.9,2767.8,0.001]
[1763796692013,1.1682,2767.9,2767.5,0.001]
[1763796692182,0.1848,2767.6,2767.5,0.001]
[1763796692567,0.6837,2767.6,2767.5,0.001]
[1763796694201,0.4894,2767.1,2767.0,0.00055]
[1763796694718,0.9883,2767.1,2767.0,0.00055]
[1763796696769,0.4667,2767.7,2767.1,0.405504]
[1763796696972,0.4667,2767.8,2767.1,0.405504]
[1763796697176,0.4667,2767.8,2767.3,0.405504]
[1763796699423,0.4667,2767.8,2767.0,3.80455]
[1763796699424,0.467,2767.4,2767.0,3.80455]
[1763796699627,0.4667,2767.8,2767.1,0.405504]
[1763796699831,0.4667,2767.7,2767.1,0.405504]
[1763796700000,0.4667,2767.7,2767.1,0.589404]
[1763796700813,0.4667,2767.7,2767.3,0.405504]
[1763796701199,0.467,2767.4,2767.3,0.405504]
[1763796701827,0.467,2767.4,2767.1,0.405504]
[1763796702026,0.2419,2767.2,2767.0,3.92655]
[1763796702437,0.2419,2767.2,2767.0,0.12255]
[1763796702947,0.2419,2767.2,2767.0,0.515205]
[1763796704344,0.002,2767.8,2767.1,1.057704]
[1763796704512,0.002,2767.8,2767.4,0.405504]
[1763796704701,0.002,2767.8,2767.4,0.527504]
[1763796704901,0.002,2767.8,2767.4,1.008704]
[1763796705100,0.002,2767.8,2767.7,0.873804]
[1763796705499,0.002,2767.8,2767.7,1.3897044]
[1763796706409,0.469,2767.8,2767.7,0.9214044]
[1763796706637,0.469,2767.8,2767.7,0.405504]
[1763796706934,0.9357,2767.8,2767.7,0.405504]
[1763796709045,0.9357,2767.8,2767.6,3.804]
[1763796709203,0.697,2767.7,2767.6,3.804]
[1763796711343,0.697,2767.7,2767.0,0.00055]
[1763796711543,0.4646,2767.1,2767.0,0.00055]
[1763796711931,0.9313,2767.1,2767.0,0.00055]
[1763796714310,0.4646,2767.1,2767.0,0.00055]
[1763796714656,0.9337,2767.1,2767.0,0.00055]
[1763796716143,0.9337,2767.1,2767.0,0.072812]
[1763796720052,0.9357,2767.1,2767.0,0.072812]
[1763796721294,0.002,2767.1,2767.0,0.072812]
[1763796721655,0.469,2767.1,2767.0,0.072812]
[1763796721865,0.9357,2767.1,2767.0,0.072812]
[1763796723796,0.9357,2767.1,2767.0,0.00055]
[1763796730612,0.9357,2767.1,2767.0,0.07283]
[1763796732410,1.50282728,2767.1,2767.0,0.07283]
[1763796732611,1.84093801,2767.1,2767.0,0.07283]
[1763796732813,3.71107913,2767.1,2767.0,0.07283]
[1763796733811,2.02678644,2767.1,2767.0,0.07283]
[1763796734418,0.469,2767.1,2767.0,0.07283]
[1763796734581,0.002,2767.1,2767.0,0.57173]
[1763796736311,0.002,2767.1,2767.0,1.02213]
[1763796736530,0.29245911,2767.6,2767.0,1.02213]
[1763796737299,0.002,2767.1,2767.0,1.02213]
[1763796737490,0.002,2767.1,2767.0,1.49076128]
[1763796737908,0.002,2767.1,2767.0,1.04036128]
[1763796739195,0.4995,2767.1,2767.0,0.54146128]
[1763796739726,0.4995,2767.1,2767.0,0.07283]
[1763796739727,0.9759,2767.1,2767.0,0.07283]
[1763796740224,0.4995,2767.1,2767.0,0.07283]
[1763796740726,0.48958863,2767.1,2767.0,0.07283]
[1763796741222,0.002,2767.4,2767.0,0.57173]
[1763796741431,0.482,2767.4,2767.0,0.57173]
[1763796741927,0.4858,2767.1,2767.0,0.51708063]
[1763796742126,0.4858,2767.1,2767.0,0.07283]
[1763796742529,0.9658,2767.1,2767.0,0.07283]
[1763796746226,1.3042525,2767.1,2767.0,0.07283]
[1763796746625,2.99106207,2767.1,2767.0,0.07283]
[1763796747555,3.55827192,2767.1,2767.0,0.07283]
[1763796747757,4.35361609,2767.1,2767.0,0.07283]
[1763796750975,3.55827192,2767.1,2767.0,0.07283]
[1763796752574,0.4858,2767.1,2767.0,0.07283]
[1763796754176,0.4878,2767.1,2767.0,0.07283]
[1763796754379,0.9678,2767.1,2767.0,0.07283]
[1763796756391,2.08368285,2767.1,2767.0,0.07283]
[1763796756680,2.29205114,2767.1,2767.0,0.07283]
[1763796757266,3.76624267,2767.1,2767.0,0.07283]
[1763796761181,3.28624267,2767.1,2767.0,0.07283]
[1763796761474,2.77573019,2767.1,2767.0,0.07283]
[1763796761673,2.77544928,2767.1,2767.0,0.07283]
[1763796762655,3.55295981,2767.1,2767.0,0.07283]
[1763796772481,3.55295981,2767.1,2767.0,0.54083]
[1763796772482,2.59115981,2767.1,2767.0,0.54083]
[1763796776983,2.02396092,2767.1,2767.0,0.54083]
[1763796777177,2.48196092,2767.1,2767.0,0.07283]
[1763796777512,2.02396092,2767.1,2767.0,0.54083]
[1763796779917,2.48196092,2767.1,2767.0,0.07283]
[1763796780212,2.95796092,2767.1,2767.0,0.07283]
[1763796780635,3.25375701,2767.1,2767.0,0.07283]
[1763796781524,2.48196092,2767.1,2767.0,0.07283]
[1763796781723,2.95796092,2767.1,2767.0,0.07283]
[1763796782623,3.00313456,2767.1,2767.0,0.07283]
[1763796782799,2.95796092,2767.1,2767.0,0.07283]
[1763796783605,3.93275444,2767.1,2767.0,0.07283]
[1763796783804,4.79845077,2767.1,2767.0,0.07283]
[1763796785141,4.79845077,2767.1,2767.0,0.00055]
[1763796787243,2.02396092,2767.1,2767.0,0.45275]
[1763796787607,1.11696828,2767.1,2767.0,0.93325]
[1763796787823,0.33945775,2767.1,2767.0,0.93325]
[1763796788031,0.002,2767.1,2767.0,0.93325]
[1763796788617,0.33945775,2767.1,2767.0,0.45275]
[1763796789040,1.11696828,2767.1,2767.0,0.45275]
[1763796789247,0.33945775,2767.1,2767.0,0.45275]
[1763796789423,0.002,2767.1,2767.0,0.45275]
[1763796789823,0.33945775,2767.1,2767.0,0.45275]
[1763796790118,0.002,2767.1,2767.0,0.45275]
[1763796790323,0.002,2767.1,2767.0,0.00055]
[1763796790324,0.4576,2767.1,2767.0,0.00055]
[1763796790640,0.79505775,2767.1,2767.0,0.00055]
[1763796790815,1.36219955,2767.1,2767.0,0.00055]
[1763796791023,1.40737319,2767.1,2767.0,0.00055]
[1763796791328,0.84023139,2767.1,2767.0,0.00055]
[1763796791535,0.38463139,2767.1,2767.0,0.45275]
[1763796791713,0.33945775,2767.1,2767.0,0.45275]
[1763796792220,0.002,2767.1,2767.0,0.45275]
[1763796793211,0.002,2767.1,2767.0,0.93325]
[1763796795043,0.002,2767.1,2767.0,0.45275]
[1763796799755,0.002,2767.1,2767.0,0.93325]
[1763796803435,0.002,2767.1,2767.0,1.39312473]
[1763796803844,0.002,2767.1,2767.0,1.79862873]
[1763796805861,0.002,2767.1,2767.0,1.9434348]
[1763796806063,0.002,2767.4,2767.3,3.66549725]
[1763796806363,0.002,2767.4,2767.3,4.27079725]
[1763796806567,0.002,2767.4,2767.3,5.26697738]
[1763796807470,0.002,2767.4,2767.3,1.12098013]
[1763796807629,0.002,2767.4,2767.3,1.0858]
[1763796810166,0.002,2767.4,2767.3,0.6053]
[1763796810464,0.002,2767.4,2767.3,0.4522]
[1763796812376,0.002,2767.4,2767.3,0.9327]
[1763796816457,0.458,2767.4,2767.1,0.1928]
[1763796816784,0.458,2767.4,2767.0,0.00055]
[1763796816785,0.0325,2767.2,2767.0,0.00055]
[1763796816939,0.4517,2767.1,2767.0,0.00055]
[1763796817133,0.4712,2767.3,2767.0,0.00055]
[1763796817444,0.4839,2767.1,2767.0,0.00055]
[1763796817843,0.9552,2767.1,2767.0,0.00055]
[1763796821101,0.9572,2767.1,2767.0,0.00055]
[1763796821761,1.29475171,2767.1,2767.0,0.00055]
[1763796821962,1.49542501,2767.1,2767.0,0.00055]
[1763796822268,1.1578733,2767.1,2767.0,0.00055]
[1763796823358,0.6865733,2767.1,2767.0,0.00055]
[1763796823591,0.002,2767.1,2767.0,0.46915]
[1763796823893,0.4932,2767.1,2767.0,0.00055]
[1763796824452,0.002,2767.1,2767.0,0.00055]
[1763796824661,0.002,2767.1,2767.0,0.46915]
[1763796827304,0.4932,2767.1,2767.0,0.00055]
[1763796828979,0.002,2767.1,2767.0,0.46915]
[1763796830327,0.002,2767.1,2767.0,0.95125]
[1763796831406,0.4746,2767.1,2767.0,0.00055]
[1763796832183,0.002,2767.1,2767.0,0.00055]
[1763796832387,0.002,2767.1,2767.0,0.46915]
[1763796836216,0.4747,2767.1,2767.0,0.46915]
[1763796836425,0.4747,2767.1,2767.0,0.00055]
[1763796836846,0.002,2767.1,2767.0,0.46915]
[1763796837046,0.002,2767.1,2767.0,0.95125]
[1763796838134,0.002,2767.1,2767.0,4.61674725]
[1763796838309,0.002,2767.1,2767.0,5.07842198]
[1763796840355,0.4807,2767.1,2767.0,0.00055]
[1763796840554,0.9632,2767.1,2767.0,0.00055]
[1763796842142,1.30160961,2767.1,2767.0,0.00055]
[1763796842456,0.002,2767.1,2767.0,0.46915]
[1763796843552,0.002,2767.1,2767.0,0.95125]
[1763796845163,0.002,2767.1,2767.0,0.46915]
[1763796846130,0.4728,2767.1,2767.0,0.00055]
[1763796847166,0.002,2767.1,2767.0,0.46985]
[1763796847371,0.002,2767.1,2767.0,0.95755]
[1763796847527,0.002,2767.1,2767.0,0.46985]
[1763796848276,0.4728,2767.1,2767.0,0.00055]
[1763796848427,0.9475,2767.1,2767.0,0.00055]
[1763796851069,3.94858374,2767.1,2767.0,0.00055]
[1763796851230,5.03027752,2767.1,2767.0,0.00055]
[1763796851753,5.35691992,2767.1,2767.0,0.00055]
[1763796851936,5.31174628,2767.1,2767.0,0.00055]
[1763796852439,4.00957311,2767.1,2767.0,0.00055]
[1763796853242,5.31174628,2767.1,2767.0,0.00055]
[1763796853447,4.00957311,2767.1,2767.0,0.00055]
[1763796854167,4.57682211,2767.1,2767.0,0.00055]
[1763796854968,5.55038215,2767.1,2767.0,0.00055]
[1763796855681,20.69294975,2767.1,2767.0,0.00055]
[1763796855882,15.02981578,2767.1,2767.0,0.00055]
[1763796856377,13.97218678,2767.1,2767.0,0.00055]
[1763796856683,11.3868047,2767.1,2767.0,0.00055]
[1763796856884,13.35840903,2767.1,2767.0,0.00055]
[1763796857188,11.12776603,2767.1,2767.0,0.00055]
[1763796857486,5.87261082,2767.1,2767.0,0.00055]
[1763796857640,4.57594503,2767.1,2767.0,0.00055]